lending/lending_fUSD_20240604
["ID","MTS","AMOUNT","RATE_DAILY","PERIOD"]
[328537456,1717506645610,-1207.06,0.00029999,6]
[328537457,1717506645620,-500.0,0.00029999,6]
[328537458,1717506645630,-500.0,0.00029999,6]
[328537459,1717506645639,-500.0,0.00029999,6]
[328537460,1717506645649,-500.0,0.00029999,6]
[328537461,1717506645659,-1207.06,0.00029999,6]
[328537462,1717506645669,-500.0,0.00029999,6]
[328537463,1717506645678,-1207.06,0.00029999,6]
[328537464,1717506645687,-525.30563491,0.00029999,6]
[328537465,1717506645697,-1207.06,0.00029999,6]
[328537466,1717506645706,-1207.06,0.00029999,6]
[328537467,1717506645715,-1207.06,0.00029999,6]
[328537468,1717506645724,-1207.06,0.00029999,6]
[328537470,1717506645734,-1207.06,0.00029999,6]
[328537471,1717506645743,-1207.06,0.00029999,6]
[328537472,1717506645752,-1207.13944176,0.00029999,6]
[328537473,1717506645762,-1764.02,0.00029999,6]
[328537474,1717506645771,-3230.33,0.00029999,6]
[328537475,1717506645780,-1764.02,0.00029999,6]
[328537476,1717506645790,-3230.33,0.00029999,6]
[328537477,1717506645799,-3230.33,0.00029999,6]
[328537478,1717506645808,-3230.33,0.00029999,6]
[328537479,1717506645818,-1764.02,0.00029999,6]
[328537480,1717506645827,-1764.02,0.00029999,6]
[328537481,1717506645837,-3230.33,0.00029999,6]
[328537482,1717506645847,-1764.02,0.00029999,6]
[328537483,1717506645856,-3230.33,0.00029999,6]
[328537484,1717506645865,-3230.33,0.00029999,6]
[328537485,1717506645875,-1764.02,0.00029999,6]
[328537487,1717506645885,-3230.33,0.00029999,6]
[328537488,1717506645894,-1764.02,0.00029999,6]
[328537489,1717506645903,-3230.33,0.00029999,6]
[328537490,1717506645912,-1764.02,0.00029999,6]
[328537491,1717506645921,-3230.33,0.00029999,6]
[328537493,1717506645931,-1764.02,0.00029999,6]
[328537495,1717506645940,-3230.33,0.00029999,6]
[328537497,1717506645949,-1764.02,0.00029999,6]
[328537498,1717506645959,-3230.33,0.00029999,6]
[328537499,1717506645969,-1764.02,0.00029999,6]
[328537501,1717506645978,-3230.33,0.00029999,6]
[328537503,1717506645987,-1764.02,0.00029999,6]
[328537505,1717506645996,-3230.33,0.00029999,6]
[328537506,1717506646006,-1764.02,0.00029999,6]
[328537509,1717506646017,-3230.33,0.00029999,6]
[328537511,1717506646026,-1764.02,0.00029999,6]
[328537513,1717506646035,-3230.33,0.00029999,6]
[328537514,1717506646044,-3230.33,0.00029999,6]
[328537516,1717506646053,-1764.02,0.00029999,6]
[328537518,1717506646063,-3230.33,0.00029999,6]
[328537519,1717506646072,-1764.02,0.00029999,6]
[328537521,1717506646081,-3230.36459464,0.00029999,6]
[328537523,1717506646091,-1764.02,0.00029999,6]
[328537524,1717506646099,-1764.02,0.00029999,6]
[328537526,1717506646109,-1764.02,0.00029999,6]
[328537528,1717506646118,-1764.02,0.00029999,6]
[328537529,1717506646129,-1764.05374856,0.00029999,6]
[328537531,1717506646138,-4780.66,0.00029999,6]
[328537533,1717506646147,-4780.66,0.00029999,6]
[328537535,1717506646156,-4780.66,0.00029999,6]
[328537536,1717506646166,-4780.66,0.00029999,6]
[328537538,1717506646175,-4780.66,0.00029999,6]
[328537539,1717506646184,-4780.66,0.00029999,6]
[328537540,1717506646194,-4780.66,0.00029999,6]
[328537541,1717506646204,-4780.66,0.00029999,6]
[328537542,1717506646214,-4780.66,0.00029999,6]
[328537543,1717506646224,-4780.66,0.00029999,6]
[328537544,1717506646234,-4780.66,0.00029999,6]
[328537545,1717506646243,-4780.66,0.00029999,6]
[328537546,1717506646255,-4780.66,0.00029999,6]
[328537547,1717506646264,-4780.66,0.00029999,6]
[328537548,1717506646275,-4780.66,0.00029999,6]
[328537549,1717506646284,-4780.66,0.00029999,6]
[328537550,1717506646293,-4780.66,0.00029999,6]
[328537551,1717506646304,-4780.66,0.00029999,6]
[328537552,1717506646315,-4780.66,0.00029999,6]
[328537553,1717506646324,-4780.66,0.00029999,6]
[328537554,1717506646335,-4780.74000001,0.00029999,6]
[328537555,1717506646345,-1907.27,0.00029999,6]
[328537556,1717506646354,-1907.27,0.00029999,6]
[328537557,1717506646363,-1907.27,0.00029999,6]
[328537558,1717506646372,-1907.27,0.00029999,6]
[328537559,1717506646383,-1907.27,0.00029999,6]
[328537560,1717506646393,-1907.27,0.00029999,6]
[328537561,1717506646403,-1907.27,0.00029999,6]
[328537563,1717506646412,-1907.27,0.00029999,6]
[328537565,1717506646421,-1907.27,0.00029999,6]
[328537567,1717506646430,-1907.27,0.00029999,6]
[328537569,1717506646439,-1907.27,0.00029999,6]
[328537571,1717506646449,-1907.27,0.00029999,6]
[328537573,1717506646458,-1907.27,0.00029999,6]
[328537576,1717506646467,-1907.27,0.00029999,6]
[328537578,1717506646476,-1907.27,0.00029999,6]
[328537580,1717506646485,-1907.27,0.00029999,6]
[328537582,1717506646495,-1907.27,0.00029999,6]
[328537584,1717506646504,-1907.27,0.00029999,6]
[328537586,1717506646514,-1907.4319,0.00029999,6]
[328537587,1717506646523,-511.66596124,0.00029999,6]
[328537590,1717506646533,-500.0,0.00029999,6]
[328537592,1717506646543,-299.45114458,0.00029999,6]
[328537594,1717506646555,-8816.77,0.00029999,6]
[328537595,1717506646566,-8816.77,0.00029999,6]
[328537596,1717506646575,-8816.77,0.00029999,6]
[328537597,1717506646585,-8816.77,0.00029999,6]
[328537598,1717506646594,-8816.77,0.00029999,6]
[328537599,1717506646603,-8816.77,0.00029999,6]
[328537600,1717506646613,-8816.77,0.00029999,6]
[328537601,1717506646622,-8816.77,0.00029999,6]
[328537602,1717506646632,-8816.77,0.00029999,6]
[328537603,1717506646641,-8816.77,0.00029999,6]
[328537604,1717506646651,-8816.77,0.00029999,6]
[328537605,1717506646660,-8816.77,0.00029999,6]
[328537606,1717506646670,-8816.77,0.00029999,6]
[328537607,1717506646679,-8816.77,0.00029999,6]
[328537608,1717506646688,-8816.77,0.00029999,6]
[328537609,1717506646698,-8816.77,0.00029999,6]
[328537610,1717506646707,-8816.77,0.00029999,6]
[328537611,1717506646717,-8816.77,0.00029999,6]
[328537612,1717506646727,-504.95749545,0.00029999,6]
[328537613,1717506646736,-4870.91341435,0.00029999,6]
[328537615,1717506647160,-561.90445716,0.00029999,6]
[328537617,1717506647173,-3027.95925375,0.00029999,6]
[328537620,1717506647195,-356.01317474,0.00029999,6]
[328537622,1717506647205,-506.99868316,0.00029999,6]
[328537624,1717506647215,-2031.85,0.00029999,6]
[328537626,1717506647224,-188.34581447,0.00029999,6]
[328537629,1717506647237,-1843.50418553,0.00029999,6]
[328537631,1717506647246,-2031.85,0.00029999,6]
[328537633,1717506647255,-2031.85,0.00029999,6]
[328537635,1717506647264,-2031.85,0.00029999,6]
[328537637,1717506647273,-2031.85,0.00029999,6]
[328537639,1717506647283,-2031.85,0.00029999,6]
[328537641,1717506647292,-500.0,0.00029999,6]
[328537643,1717506647301,-2031.85,0.00029999,6]
[328537645,1717506647314,-500.0,0.00029999,6]
[328537647,1717506647323,-2031.85,0.00029999,6]
[328537649,1717506647333,-500.0,0.00029999,6]
[328537651,1717506647343,-2031.85,0.00029999,6]
[328537653,1717506647352,-500.0,0.00029999,6]
[328537655,1717506647362,-2031.85,0.00029999,6]
[328537657,1717506647371,-500.0,0.00029999,6]
[328537659,1717506647382,-2031.85,0.00029999,6]
[328537661,1717506647392,-500.0,0.00029999,6]
[328537663,1717506647402,-2031.85,0.00029999,6]
[328537665,1717506647412,-2031.85,0.00029999,6]
[328537667,1717506647421,-2031.85,0.00029999,6]
[328537669,1717506647431,-500.0,0.00029999,6]
[328537672,1717506647441,-2031.85,0.00029999,6]
[328537674,1717506647450,-500.0,0.00029999,6]
[328537676,1717506647459,-2032.07775062,0.00029999,6]
[328537678,1717506647469,-500.0,0.00029999,6]
[328537680,1717506647479,-500.0,0.00029999,6]
[328537682,1717506647488,-500.0,0.00029999,6]
[328537684,1717506647498,-500.0,0.00029999,6]
[328537686,1717506647507,-500.0,0.00029999,6]
[328537688,1717506647516,-500.0,0.00029999,6]
[328537690,1717506647526,-500.0,0.00029999,6]
[328537692,1717506647535,-500.0,0.00029999,6]
[328537694,1717506647545,-459.81648194,0.00029999,6]
[328537696,1717506647555,-1522.52,0.00029999,6]
[328537698,1717506647564,-2535.22,0.00029999,6]
[328537700,1717506647575,-1522.52,0.00029999,6]
[328537702,1717506647584,-2535.22,0.00029999,6]
[328537704,1717506647594,-1522.52,0.00029999,6]
[328537707,1717506647604,-2535.22,0.00029999,6]
[328537709,1717506647613,-1522.52,0.00029999,6]
[328537711,1717506647622,-2535.22,0.00029999,6]
[328537713,1717506647632,-1522.52,0.00029999,6]
[328537715,1717506647642,-2535.22,0.00029999,6]
[328537717,1717506647651,-1522.52,0.00029999,6]
[328537719,1717506647660,-2535.22,0.00029999,6]
[328537721,1717506647670,-1522.52,0.00029999,6]
[328537723,1717506647680,-2535.22,0.00029999,6]
[328537725,1717506647689,-1522.52,0.00029999,6]
[328537727,1717506647698,-2535.22,0.00029999,6]
[328537729,1717506647707,-2535.22,0.00029999,6]
[328537731,1717506647717,-2535.22,0.00029999,6]
[328537733,1717506647726,-1522.52,0.00029999,6]
[328537735,1717506647735,-1522.52,0.00029999,6]
[328537737,1717506647745,-500.0,0.00029999,6]
[328537739,1717506647754,-2535.22,0.00029999,6]
[328537741,1717506647763,-2535.22,0.00029999,6]
[328537743,1717506647773,-1522.52,0.00029999,6]
[328537759,1717506647906,-500.0,0.00029999,6]
[328537761,1717506647915,-2535.22,0.00029999,6]
[328537763,1717506647925,-1522.52,0.00029999,6]
[328537765,1717506647934,-2535.22,0.00029999,6]
[328537767,1717506647943,-1522.52,0.00029999,6]
[328537769,1717506647952,-378.78470977,0.00029999,6]
[328537771,1717506647961,-2535.22,0.00029999,6]
[328537773,1717506647970,-1522.52,0.00029999,6]
[328537775,1717506647979,-2535.22,0.00029999,6]
[328537777,1717506647987,-1522.52,0.00029999,6]
[328537778,1717506647997,-1522.52,0.00029999,6]
[328537779,1717506648006,-2535.22,0.00029999,6]
[328537780,1717506648016,-1522.67273133,0.00029999,6]
[328537781,1717506648025,-2535.22,0.00029999,6]
[328537782,1717506648034,-2535.29365133,0.00029999,6]
[328537783,1717506648043,-571.09,0.00029999,6]
[328537784,1717506648052,-500.0,0.00029999,6]
[328537785,1717506648061,-571.09,0.00029999,6]
[328537786,1717506648070,-500.0,0.00029999,6]
[328537787,1717506648080,-571.09,0.00029999,6]
[328537789,1717506648089,-500.0,0.00029999,6]
[328537791,1717506648098,-571.09,0.00029999,6]
[328537793,1717506648107,-282.55385928,0.00029999,6]
[328537795,1717506648116,-571.09,0.00029999,6]
[328537797,1717506648125,-571.09,0.00029999,6]
[328537799,1717506648135,-571.09,0.00029999,6]
[328537801,1717506648144,-571.09,0.00029999,6]
[328537803,1717506648152,-571.09,0.00029999,6]
[328537805,1717506648161,-571.09,0.00029999,6]
[328537807,1717506648171,-571.09,0.00029999,6]
[328537809,1717506648180,-571.09,0.00029999,6]
[328537811,1717506648189,-571.09,0.00029999,6]
[328537813,1717506648197,-571.09,0.00029999,6]
[328537815,1717506648207,-526.56,0.00029999,6]
[328537816,1717506648217,-571.09,0.00029999,6]
[328537818,1717506648236,-526.56,0.00029999,6]
[328537820,1717506648253,-571.09,0.00029999,6]
[328537823,1717506648263,-526.56,0.00029999,6]
[328537825,1717506648271,-571.09034137,0.00029999,6]
[328537826,1717506648281,-526.56,0.00029999,6]
[328537828,1717506648290,-526.56,0.00029999,6]
[328537830,1717506648299,-526.56,0.00029999,6]
[328537832,1717506648312,-526.56,0.00029999,6]
[328537834,1717506648321,-526.56,0.00029999,6]
[328537836,1717506648330,-526.56,0.00029999,6]
[328537838,1717506648339,-526.56,0.00029999,6]
[328537840,1717506648350,-526.56,0.00029999,6]
[328537842,1717506648359,-526.56,0.00029999,6]
[328537845,1717506648369,-526.56,0.00029999,6]
[328537846,1717506648378,-526.56,0.00029999,6]
[328537849,1717506648390,-526.56,0.00029999,6]
[328537851,1717506648398,-526.56,0.00029999,6]
[328537853,1717506648407,-526.56,0.00029999,6]
[328537855,1717506648417,-526.56,0.00029999,6]
[328537857,1717506648425,-526.71,0.00029999,6]
[328537859,1717506648434,-243.139248,0.00029999,7]
[328537861,1717506648444,-243.139248,0.00029999,7]
[328537863,1717506648453,-243.139248,0.00029999,7]
[328537864,1717506648462,-509.79,0.00029999,6]
[328537866,1717506648471,-509.79,0.00029999,6]
[328537869,1717506648481,-509.79,0.00029999,6]
[328537871,1717506648490,-509.79,0.00029999,6]
[328537873,1717506648499,-509.79,0.00029999,6]
[328537875,1717506648508,-509.79,0.00029999,6]
[328537876,1717506648517,-509.79,0.00029999,6]
[328537878,1717506648526,-509.79,0.00029999,6]
[328537880,1717506648536,-509.79,0.00029999,6]
[328537882,1717506648545,-509.79,0.00029999,6]
[328537884,1717506648554,-243.139248,0.00029999,7]
[328537886,1717506648563,-509.79,0.00029999,6]
[328537888,1717506648572,-243.139248,0.00029999,7]
[328537890,1717506648580,-509.79,0.00029999,6]
[328537892,1717506648590,-243.139248,0.00029999,7]
[328537894,1717506648599,-509.79,0.00029999,6]
[328537896,1717506648608,-509.79,0.00029999,6]
[328537898,1717506648617,-509.79,0.00029999,6]
[328537900,1717506648626,-509.79,0.00029999,6]
[328537902,1717506648635,-509.79649938,0.00029999,6]
[328537904,1717506648645,-349.67475437,0.00029999,6]
[328537906,1717506648653,-500.0,0.00029999,6]
[328537908,1717506648663,-500.0,0.00029999,6]
[328537910,1717506648672,-500.0,0.00029999,6]
[328537912,1717506648681,-500.0,0.00029999,6]
[328537914,1717506648690,-500.0,0.00029999,6]
[328537916,1717506648700,-500.0,0.00029999,6]
[328537918,1717506648709,-500.0,0.00029999,6]
[328537920,1717506648718,-500.0,0.00029999,6]
[328537923,1717506648730,-500.0,0.00029999,6]
[328537924,1717506648743,-500.0,0.00029999,6]
[328537926,1717506648764,-500.0,0.00029999,6]
[328537928,1717506648778,-500.0,0.00029999,6]
[328537931,1717506648788,-500.0,0.00029999,6]
[328537933,1717506648797,-500.0,0.00029999,6]
[328537935,1717506648806,-500.0,0.00029999,6]
[328537937,1717506648815,-500.0,0.00029999,6]
[328537939,1717506648823,-500.0,0.00029999,6]
[328537941,1717506648832,-530.16719704,0.00029999,6]
[328537942,1717506648841,-500.0,0.00029999,6]
[328537945,1717506648850,-500.0,0.00029999,6]
[328537946,1717506648860,-263.33582947,0.00029999,6]
[328537948,1717506648869,-500.0,0.00029999,6]
[328537951,1717506648879,-500.0,0.00029999,6]
[328537952,1717506648887,-500.0,0.00029999,6]
[328537954,1717506648896,-500.0,0.00029999,6]
[328537956,1717506648905,-500.0,0.00029999,6]
[328537958,1717506648914,-500.0,0.00029999,6]
[328537960,1717506648923,-358.0928164,0.00029999,6]
[328537963,1717506648932,-63775.39242551,0.0003,2]
[328537965,1717506648946,-3865.81,0.0003,2]
[328537967,1717506648957,-1310.42936115,0.0003,2]
[328537969,1717506648968,-9869.17108544,0.0003,2]
[328537972,1717506648978,-1963.86783739,0.0003,2]
[328537974,1717506648989,-1516.6,0.0003,2]
[328537976,1717506649000,-15652.89188963,0.0003,2]
[328537978,1717506649011,-376.729677,0.0003,2]
[328537980,1717506649023,-5017.68946179,0.0003,2]
[328537983,1717506649034,-1425.37930718,0.0003,2]
[328537985,1717506649045,-633.56217276,0.0003,2]
[328537987,1717506649056,-440.99237249,0.0003,2]
[328537989,1717506649067,-930.552031,0.0003,2]
[328537992,1717506649078,-338.72698102,0.0003,2]
[328537994,1717506649088,-330.3755325,0.0003,2]
[328537996,1717506649099,-29793.46934508,0.0003,2]
[328538006,1717506649181,-705.76957178,0.00029998,2]
[328538008,1717506649190,-500.0,0.00029998,6]
[328538010,1717506649199,-500.0,0.00029998,6]
[328538012,1717506649208,-500.0,0.00029998,6]
[328538014,1717506649217,-373.15892179,0.00029999,2]
[328538016,1717506649226,-509.23838166,0.00029999,6]
[328538018,1717506649235,-3268.02518152,0.0003,2]
[328538020,1717506649246,-684.10034952,0.0003,2]
[328538022,1717506649256,-2013.25,0.0003,2]
[328538024,1717506649267,-324.23779872,0.0003,2]
[328538026,1717506649278,-615.91824371,0.0003,2]
[328538029,1717506649289,-281.0,0.0003,2]
[328538031,1717506649300,-1235.88239744,0.0003,2]
[328538033,1717506649315,-2251.12598279,0.0003,2]
[328538035,1717506649325,-1346.23867997,0.0003,2]
[328538038,1717506649336,-372.33865253,0.0003,2]
[328538040,1717506649348,-385.07401451,0.0003,2]
[328538042,1717506649363,-771.4335555,0.0003,2]
[328538045,1717506649373,-3570.13895904,0.0003,2]
[328538047,1717506649387,-3399.39625553,0.0003,2]
[328538049,1717506649398,-2192.31003432,0.0003,2]
[328538226,1717507045305,-207.967879,0.00031953,120]
[328538227,1717507135459,-519.18217285,0.00032,80]
[328538588,1717507835073,-154.15186399,0.00017122,2]
[328538589,1717507835093,-1979.48660224,0.00017205,2]
[328538590,1717507835104,-1604.42416454,0.00017206,2]
[328538591,1717507835217,-763.98530825,0.00017206,2]
[328538592,1717507835227,-3384.04340712,0.00017206,2]
[328538593,1717507835238,-1488.74285699,0.00017207,2]
[328538594,1717507835248,-2568.59248095,0.00017258,2]
[328538595,1717507835258,-3286.0,0.000213,3]
[328538596,1717507835268,-159.29,0.00024384,2]
[328538597,1717507835278,-245.46,0.0002653,2]
[328538598,1717507835288,-533.13,0.00027843,2]
[328538599,1717507835298,-1000.0,0.00027886,2]
[328538600,1717507835308,-250.0,0.00028131,2]
[328538601,1717507835318,-300.0,0.00028398,2]
[328538602,1717507835329,-426.4888,0.00028398,2]
[328538603,1717507835339,-782.61360794,0.00028498,2]
[328538604,1717507835348,-283.37,0.00028737,2]
[328538605,1717507835358,-245.46,0.00028794,2]
[328538606,1717507835367,-1258.78,0.00029041,2]
[328538607,1717507835379,-423.46,0.00029041,2]
[328538608,1717507835389,-157.65408137,0.00029302,2]
[328538609,1717507835398,-160.07720588,0.00029326,2]
[328538611,1717507835408,-150.0,0.00029396,2]
[328538612,1717507835418,-154.862648,0.00029463,2]
[328538613,1717507835427,-152.68220394,0.00029487,2]
[328538614,1717507835438,-8337.23781158,0.00029497,2]
[328538615,1717507835450,-2760.52,0.00029497,2]
[328538616,1717507835462,-267.23393513,0.00029497,2]
[328538617,1717507835474,-2168.70246213,0.00029497,2]
[328538619,1717507835486,-792.96479116,0.00029497,2]
[328538621,1717507835496,-153.54512161,0.00029509,2]
[328538623,1717507835506,-151.69344044,0.00029562,2]
[328538625,1717507835516,-153.54512161,0.00029617,2]
[328538627,1717507835526,-339.17922691,0.00029698,2]
[328538629,1717507835535,-157.65408137,0.00029705,2]
[328538631,1717507835545,-154.862648,0.00029752,2]
[328538633,1717507835554,-228.88255438,0.0002976,2]
[328538666,1717507838578,-271.11744562,0.0002976,2]
[328538667,1717507838587,-150.0,0.0002977,2]
[328538668,1717507838597,-150.0,0.00029787,2]
[328538669,1717507838607,-154.3225918,0.00029799,2]
[328538670,1717507838616,-277.49596186,0.000298,2]
[328538671,1717507838633,-300.11965555,0.000298,2]
[328538672,1717507838644,-1522.57839701,0.000298,2]
[328538673,1717507838657,-4288.73808558,0.000298,2]
[328538674,1717507838669,-151.69344044,0.00029803,2]
[328538675,1717507838678,-150.0,0.00029821,2]
[328538676,1717507838688,-150.0,0.0002985,2]
[328538677,1717507838698,-150.0,0.00029872,2]
[328538678,1717507838708,-151.69344044,0.00029886,2]
[328538679,1717507838717,-150.0,0.00029896,2]
[328538680,1717507838727,-304.28310744,0.00029897,2]
[328538681,1717507838739,-160.72273957,0.000299,2]
[328538682,1717507838749,-100000.0,0.000299,2]
[328538683,1717507838758,-150.0,0.000299,2]
[328538684,1717507838768,-23398.98678908,0.000299,2]
[328538685,1717507838777,-1809.19640747,0.000299,2]
[328538686,1717507838787,-150.0,0.00029917,2]
[328538687,1717507838796,-150.0,0.00029929,2]
[328538688,1717507838806,-150.0,0.00029941,2]
[328538689,1717507838820,-150.0,0.00029971,2]
[328538690,1717507838830,-150.0,0.00029989,2]
[328538691,1717507838840,-151.43,0.0002999,2]
[328538692,1717507838850,-151.43,0.0002999,2]
[328538693,1717507838860,-151.43,0.0002999,2]
[328538694,1717507838870,-155.67948464,0.00029998,2]
[328538695,1717507838883,-626.94963818,0.00029998,2]
[328538696,1717507838893,-156.05127136,0.00029998,2]
[328538697,1717507838902,-248.96404531,0.00029998,2]
[328538698,1717507838912,-162.45347284,0.00029998,2]
[328538699,1717507838921,-301.51466406,0.00029998,2]
[328538700,1717507838931,-560.85470699,0.00029998,2]
[328538701,1717507838940,-528.3111958,0.00029998,2]
[328538702,1717507838950,-452.17567874,0.00029998,2]
[328538703,1717507838959,-482.08692557,0.00029998,2]
[328538704,1717507838969,-573.62581338,0.00029998,2]
[328538705,1717507838979,-827.48757697,0.00029998,2]
[328538706,1717507838988,-1275.09803465,0.00029998,2]
[328538707,1717507838998,-429.06448337,0.00029998,2]
[328538708,1717507839008,-364.93128834,0.00029998,2]
[328538709,1717507839018,-213.98814988,0.00029998,2]
[328538710,1717507839028,-268.78049174,0.00029998,2]
[328538711,1717507839037,-204.78051809,0.00029998,2]
[328538712,1717507839047,-326.47685623,0.00029998,2]
[328538713,1717507839057,-724.95541199,0.00029998,2]
[328538714,1717507839067,-162.76290291,0.00029998,2]
[328538715,1717507839077,-446.80079403,0.00029998,2]
[328538716,1717507839086,-155.35331114,0.00029998,2]
[328538717,1717507839096,-317.11697702,0.00029998,2]
[328538718,1717507839106,-4185.21200345,0.00029998,2]
[328538719,1717507839116,-657.82936263,0.00029998,2]
[328538720,1717507839128,-573.84751848,0.00029998,2]
[328538721,1717507839138,-281.81474394,0.00029998,2]
[328538722,1717507839147,-5000.0,0.00029998,2]
[328538723,1717507839157,-500.0,0.00029998,6]
[328538724,1717507839166,-500.0,0.00029998,6]
[328538725,1717507839176,-346.50471309,0.00029999,2]
[328538726,1717507839185,-314.34967687,0.00029999,6]
[328538727,1717507839195,-461.0313505,0.00029999,6]
[328538728,1717507839204,-500.0,0.00029999,6]
[328538729,1717507839214,-500.0,0.00029999,6]
[328538730,1717507839224,-300.31626221,0.00029999,6]
[328538731,1717507839234,-500.0,0.00029999,6]
[328538732,1717507839244,-500.0,0.00029999,6]
[328538733,1717507839254,-500.0,0.00029999,6]
[328538734,1717507839264,-500.0,0.00029999,6]
[328538735,1717507839273,-500.0,0.00029999,6]
[328538736,1717507839283,-500.0,0.00029999,6]
[328538737,1717507839292,-500.0,0.00029999,6]
[328538738,1717507839302,-500.0,0.00029999,6]
[328538739,1717507839311,-231.18459439,0.00029999,6]
[328538740,1717507839321,-645.52466689,0.00029999,6]
[328538741,1717507839331,-151.69344044,0.00029999,2]
[328538742,1717507839341,-720.75158,0.00029999,2]
[328538743,1717507839351,-916.62,0.00029999,6]
[328538744,1717507839361,-916.62,0.00029999,6]
[328538745,1717507839370,-916.62,0.00029999,6]
[328538746,1717507839382,-916.62,0.00029999,6]
[328538747,1717507839391,-916.62,0.00029999,6]
[328538748,1717507839401,-916.62,0.00029999,6]
[328538749,1717507839411,-916.62,0.00029999,6]
[328538750,1717507839421,-916.62,0.00029999,6]
[328538751,1717507839431,-916.62,0.00029999,6]
[328538752,1717507839440,-916.62,0.00029999,6]
[328538753,1717507839450,-916.62,0.00029999,6]
[328538754,1717507839460,-916.62,0.00029999,6]
[328538755,1717507839470,-916.62,0.00029999,6]
[328538756,1717507839481,-916.62,0.00029999,6]
[328538757,1717507839490,-916.62,0.00029999,6]
[328538758,1717507839501,-916.62,0.00029999,6]
[328538759,1717507839511,-916.62,0.00029999,6]
[328538760,1717507839520,-916.62,0.00029999,6]
[328538761,1717507839530,-916.62,0.00029999,6]
[328538762,1717507839540,-916.62,0.00029999,6]
[328538763,1717507839550,-916.62,0.00029999,6]
[328538764,1717507839560,-916.62,0.00029999,6]
[328538765,1717507839570,-916.62,0.00029999,6]
[328538766,1717507839579,-916.69434675,0.00029999,6]
[328538767,1717507839589,-500.0,0.00029999,6]
[328538768,1717507839599,-500.0,0.00029999,6]
[328538769,1717507839609,-500.0,0.00029999,6]
[328538770,1717507839618,-500.0,0.00029999,6]
[328538771,1717507839629,-500.0,0.00029999,6]
[328538772,1717507839639,-500.0,0.00029999,6]
[328538773,1717507839653,-500.0,0.00029999,6]
[328538774,1717507839663,-500.0,0.00029999,6]
[328538775,1717507839673,-500.0,0.00029999,6]
[328538776,1717507839683,-500.0,0.00029999,6]
[328538777,1717507839692,-500.0,0.00029999,6]
[328538778,1717507839704,-500.0,0.00029999,6]
[328538779,1717507839714,-500.0,0.00029999,6]
[328538780,1717507839724,-500.0,0.00029999,6]
[328538781,1717507839734,-500.0,0.00029999,6]
[328538782,1717507839744,-500.0,0.00029999,6]
[328538783,1717507839754,-500.0,0.00029999,6]
[328538784,1717507839764,-500.0,0.00029999,6]
[328538785,1717507839774,-500.0,0.00029999,6]
[328538786,1717507839784,-500.0,0.00029999,6]
[328538787,1717507839794,-500.0,0.00029999,6]
[328538788,1717507839804,-500.0,0.00029999,6]
[328538789,1717507839814,-500.0,0.00029999,6]
[328538790,1717507839824,-500.0,0.00029999,6]
[328538791,1717507839834,-153.65,0.00029999,6]
[328538792,1717507839844,-261.0,0.0003,5]
[328538793,1717507839854,-599.16939737,0.0003,5]
[328538794,1717507839864,-149258.56585071,0.0003,13]
[328538795,1717507839877,-194743.83209114,0.0003,2]
[328538800,1717507841064,-172.398397,0.0002999,2]
[328538801,1717507841076,-172.398397,0.0002999,2]
[328538802,1717507841086,-2766.99444793,0.0003,2]
[328538803,1717507841098,-3602.21195516,0.0003,2]
[328538804,1717507841109,-4128.63986883,0.0003,2]